fUST/lending_fUST_20241013
["ID","MTS","AMOUNT","RATE_DAILY","PERIOD"]
[340170357,1728749242159,-495.37717322,0.00025204,7]
[340170358,1728749246132,-4.62282678,0.00025204,7]
[340170359,1728749246155,-441.68064161,0.00026849,7]
[340170360,1728749346129,-58.31935839,0.00026849,7]
[340170361,1728749346152,-500.0,0.00028475,7]
[340170362,1728749346174,-500.0,0.00028475,7]
[340170363,1728749346196,-500.0,0.00028475,7]
[340170364,1728749346216,-210.39938321,0.00028475,2]
[340170365,1728749346236,-500.0,0.00028574,7]
[340170366,1728749346259,-360.522,0.00028575,7]
[340170367,1728749346282,-5761.50825921,0.00028693,2]
[340170368,1728749348107,-526.85240939,0.00028693,2]
[340170369,1728749348137,-216.047124,0.00029294,2]
[340170370,1728749348161,-216.047124,0.00029374,2]
[340170371,1728749348186,-216.047124,0.00029455,2]
[340170372,1728749348211,-216.047124,0.00029535,2]
[340170373,1728749348237,-216.047124,0.00029615,2]
[340170374,1728749348261,-216.047124,0.00029696,2]
[340170375,1728749348287,-216.047124,0.00029776,2]
[340170376,1728749348315,-216.047124,0.00029856,2]
[340170377,1728749348342,-216.047124,0.00029937,2]
[340170378,1728749348375,-216.047124,0.00030017,2]
[340170379,1728749348400,-216.047124,0.00030097,2]
[340170380,1728749348426,-216.047124,0.00030178,2]
[340170381,1728749348451,-216.047124,0.00030258,2]
[340170382,1728749348473,-216.047124,0.00030338,2]
[340170383,1728749348495,-216.047124,0.00030419,2]
[340170384,1728749348517,-400.0,0.00030498,2]
[340170385,1728749348537,-400.0,0.00030498,2]
[340170386,1728749348557,-216.047124,0.00030499,2]
[340170387,1728749348578,-216.047124,0.00030579,2]
[340170388,1728749348598,-216.047124,0.0003066,2]
[340170389,1728749348619,-216.047124,0.0003074,2]
[340170390,1728749348640,-216.047124,0.0003082,2]
[340170391,1728749348661,-8990.67777061,0.00031969,2]
[340170392,1728749356289,-9435.26163622,0.00031969,2]
[340170393,1728749357109,-6474.06059317,0.00031969,2]
[340170394,1728749357131,-174.260104,0.00032146,2]
[340170395,1728749357153,-174.260104,0.00032307,2]
[340170396,1728749357174,-1266.081969,0.00032451,7]
[340170397,1728749357198,-239.794298,0.00032743,2]
[340170398,1728749357222,-560.0,0.00032853,2]
[340170399,1728749357246,-169.897684,0.00032877,120]
[340170400,1728749357270,-303.28310486,0.00032877,2]
[340170401,1728749357293,-560.0,0.00033548,2]
[340170402,1728749357316,-500.0,0.0003443,14]
[340170403,1728749357339,-156.0,0.0003443,2]
[340170404,1728749357363,-500.0,0.000346,5]
[340170405,1728749357386,-500.0,0.000346,5]
[340170406,1728749357408,-500.0,0.000346,5]
[340170407,1728749357430,-500.0,0.0003465,5]
[340170408,1728749357450,-534.10013876,0.0003465,5]
[340170409,1728749357471,-500.0,0.0003465,5]
[340170410,1728749357495,-1111.0,0.00034849,120]
[340170411,1728749357519,-291.09110315,0.00035,2]
[340170412,1728749357543,-500.0,0.0003526,14]
[340170413,1728749357657,-783.0,0.0003539,2]
[340170414,1728749357679,-152.5,0.00035969,15]
[340170415,1728749357701,-500.0,0.00035969,15]
[340170416,1728749357725,-584.09486093,0.00035969,15]
[340170417,1728749357749,-255.7918741,0.00035969,15]
[340170418,1728749357771,-789.52682743,0.0003597,5]
[340170419,1728749357796,-505.63140856,0.0003597,5]
[340170420,1728749357819,-500.66775693,0.0003597,5]
[340170421,1728749357843,-1000.0,0.0003602,5]
[340170422,1728749357867,-226.46286097,0.00036822,2]
[340170423,1728749357892,-783.0,0.00036903,2]
[340170424,1728749357915,-165.369,0.00037,47]
[340170425,1728749357943,-499.76456139,0.00037159,14]
[340170426,1728749357964,-4140.7751889,0.00037258,2]
[340170427,1728749360123,-500.0,0.00037358,14]
[340170428,1728749360146,-500.0,0.00037524,14]
[340170429,1728749360167,-1500.0,0.00038023,5]
[340170430,1728749360189,-1097.0,0.00038123,2]
[340170431,1728749360215,-365.26389179,0.00038795,7]
[340170453,1728749435532,-500.0,0.0003959,120]
[340170456,1728749435544,-156.0,0.0003959,2]
[340170458,1728749435555,-104.91945569,0.0004,2]
[340170464,1728749435979,1521.93944335,0.00037329,120]
[340170469,1728749438694,-206.83489131,0.0004,2]
[340170470,1728749438704,-500.0,0.00040274,5]
[340170471,1728749438715,-2000.0,0.00040364,5]
[340170472,1728749438727,-151.32664007,0.00040379,2]
[340170473,1728749438739,-6670.78677897,0.00040666,2]
[340170474,1728749438749,-550.0,0.00040736,5]
[340170475,1728749438758,-611.08669562,0.00040767,21]
[340170476,1728749438768,-426.91978362,0.00040932,2]
[340170477,1728749438781,-426.9197836,0.00040937,2]
[340170478,1728749438790,-426.9197836,0.00040942,2]
[340170479,1728749438799,-426.9197836,0.00040947,2]
[340170480,1728749438808,-426.9197836,0.00040952,2]
[340170481,1728749438818,-267.66,0.00041002,3]
[340170482,1728749438829,-1070.65,0.00041012,3]
[340170483,1728749438839,-535.33,0.00041012,3]
[340170484,1728749438849,-803.03,0.00041012,3]
[340170485,1728749438860,-4908.46572929,0.00041021,14]
[340170486,1728749438870,-271.43874259,0.00041021,31]
[340170487,1728749438880,-285.55889416,0.00041021,31]
[340170488,1728749438891,-317.58057726,0.00041021,31]
[340170489,1728749438902,-500.0,0.00041021,31]
[340170490,1728749438913,-500.0,0.00041021,31]
[340170491,1728749438923,-500.0,0.00041021,31]
[340170492,1728749438934,-500.0,0.00041021,31]
[340170493,1728749438944,-500.0,0.00041021,31]
[340170494,1728749438955,-500.0,0.00041021,31]
[340170495,1728749438967,-500.0,0.00041021,31]
[340170496,1728749438983,-103498.1517,0.00041022,6]
[340170497,1728749438995,-102600.528533,0.00041022,6]
[340170498,1728749439004,-333.17637426,0.00041022,30]
[340170499,1728749439013,-151.0,0.00041032,14]
[340170500,1728749439025,-151.0,0.00041032,14]
[340170501,1728749439034,-3140.688368,0.00041032,14]
[340170502,1728749439046,-151.0,0.00041032,14]
[340170503,1728749439056,-3140.688368,0.00041032,14]
[340170504,1728749439066,-151.0,0.00041032,14]
[340170505,1728749439075,-151.0,0.00041032,14]
[340170506,1728749439087,-151.0,0.00041032,14]
[340170507,1728749439098,-151.0,0.00041032,14]
[340170508,1728749439108,-644.783026,0.00041032,14]
[340170509,1728749439118,-644.783026,0.00041032,14]
[340170510,1728749439130,-103498.1517,0.00041032,6]
[340170511,1728749439141,-102600.528533,0.00041032,6]
[340170512,1728749439151,-103498.1517,0.00041033,6]
[340170513,1728749439162,-102600.528533,0.00041033,6]
[340170514,1728749439173,-151.0,0.00041033,14]
[340170515,1728749439182,-151.0,0.00041033,14]
[340170516,1728749439191,-151.0,0.00041033,14]
[340170517,1728749439201,-163.22775,0.00041033,14]
[340170518,1728749439212,-3140.688368,0.00041033,14]
[340170519,1728749439222,-3140.688368,0.00041033,14]
[340170520,1728749439231,-151.0,0.00041033,14]
[340170521,1728749439240,-3140.688368,0.00041033,14]
[340170522,1728749439250,-151.0,0.00041033,14]
[340170523,1728749439267,-3140.688368,0.00041033,14]
[340170524,1728749439283,-151.0,0.00041033,14]
[340170525,1728749439300,-151.0,0.00041033,14]
[340170526,1728749439317,-151.0,0.00041033,14]
[340170527,1728749439330,-151.0,0.00041033,14]
[340170528,1728749439343,-152.833089,0.00041033,14]
[340170529,1728749439356,-176.594509,0.00041033,14]
[340170530,1728749439369,-644.783026,0.00041033,14]
[340170531,1728749439382,-644.783026,0.00041033,14]
[340170532,1728749439397,-644.783026,0.00041033,14]
[340170533,1728749439411,-644.783026,0.00041033,14]
[340170534,1728749439424,-1008.35634105,0.00041041,7]
[340170535,1728749439439,-151.0,0.00041042,14]
[340170536,1728749439455,-151.0,0.00041042,14]
[340170537,1728749439473,-3140.688368,0.00041042,14]
[340170538,1728749439484,-3140.688368,0.00041042,14]
[340170539,1728749439496,-151.0,0.00041042,14]
[340170540,1728749439507,-3140.688368,0.00041042,14]
[340170541,1728749439520,-151.0,0.00041042,14]
[340170542,1728749439532,-3140.688368,0.00041042,14]
[340170543,1728749439544,-151.0,0.00041042,14]
[340170544,1728749439558,-151.0,0.00041042,14]
[340170545,1728749439568,-151.0,0.00041042,14]
[340170546,1728749439580,-196.936682,0.00041042,14]
[340170547,1728749439592,-644.783026,0.00041042,14]
[340170548,1728749439604,-644.783026,0.00041042,14]
[340170549,1728749439617,-644.783026,0.00041042,14]
[340170550,1728749439631,-644.783026,0.00041042,14]
[340170551,1728749439646,-103498.1517,0.00041042,6]
[340170552,1728749439659,-102600.528533,0.00041042,6]
[340170553,1728749439674,-151.0,0.00041043,14]
[340170554,1728749439690,-151.0,0.00041043,14]
[340170555,1728749439704,-151.0,0.00041043,14]
[340170556,1728749439717,-152.356387,0.00041043,7]
[340170557,1728749439730,-37730.59891204,0.00041052,2]
[340170558,1728749439740,-23875.7121061,0.00041053,2]
[340170559,1728749439751,-151.0,0.00041053,14]
[340170560,1728749439764,-173.542322,0.00041053,14]
[340170561,1728749439779,-162.844359,0.00041053,14]
[340170562,1728749439793,-151.0,0.00041053,14]
[340170563,1728749439806,-162.629877,0.00041053,14]
[340170564,1728749439818,-151.0,0.00041053,14]
[340170565,1728749439830,-151.0,0.00041053,14]
[340170566,1728749439843,-151.0,0.00041053,14]
[340170567,1728749439855,-151.0,0.00041053,14]
[340170568,1728749439869,-151.0,0.00041053,14]
[340170569,1728749439883,-151.0,0.00041053,14]
[340170570,1728749439895,-151.0,0.00041053,14]
[340170571,1728749439908,-151.0,0.00041053,14]
[340170572,1728749439919,-151.0,0.00041053,14]
[340170573,1728749439930,-151.0,0.00041053,14]
[340170574,1728749439942,-493.90131768,0.00041073,5]
[340170575,1728749439956,-500.0,0.00041073,5]
[340170576,1728749439969,-500.0,0.00041073,5]
[340170577,1728749439982,-500.0,0.00041073,2]
[340170578,1728749439994,-500.0,0.00041073,5]
[340170579,1728749440005,-500.0,0.00041073,5]
[340170580,1728749440018,-150.112233,0.000412,10]
[340170581,1728749440030,-150.112233,0.000412,8]
[340170582,1728749440041,-150.112233,0.000412,8]
[340170583,1728749440055,-150.112233,0.000412,10]
[340170584,1728749440067,-4304.75322855,0.00041218,2]
[340170585,1728749440080,-500.0,0.00041289,14]
[340170586,1728749440092,-500.0,0.000413,14]
[340170587,1728749440106,-150.112233,0.000413,7]
[340170589,1728749440116,-150.112233,0.000413,5]
[340170591,1728749440127,-150.112233,0.000413,10]
[340170593,1728749440138,-150.112233,0.000413,7]
[340170594,1728749440151,-150.112233,0.000413,7]
[340170595,1728749440163,-150.112233,0.000413,5]
[340170597,1728749440175,-160.873235,0.00041318,120]
[340170598,1728749440188,-151.0,0.00041318,120]
[340170599,1728749440198,-151.0,0.00041318,120]
[340170600,1728749440209,-151.0,0.00041318,120]
[340170601,1728749440221,-151.0,0.00041318,120]
[340170603,1728749440234,-151.0,0.00041318,120]
[340170604,1728749440247,-151.0,0.00041318,120]
[340170605,1728749440258,-151.0,0.00041318,120]
[340170606,1728749440272,-156.652751,0.00041318,120]
[340170607,1728749440286,-151.0,0.00041318,120]
[340170608,1728749440298,-151.0,0.00041318,120]
[340170611,1728749440308,-151.0,0.00041327,3]
[340170613,1728749440414,-151.0,0.00041327,120]
[340170615,1728749440426,-151.0,0.00041327,120]
[340170617,1728749440437,-151.0,0.00041327,120]
[340170619,1728749440447,-151.0,0.00041332,3]
[340170621,1728749440458,-151.0,0.00041332,120]
[340170622,1728749440468,-151.0,0.00041332,120]
[340170623,1728749440478,-151.0,0.00041332,120]
[340170624,1728749440489,-151.0,0.00041332,120]
[340170625,1728749440499,-151.0,0.00041332,120]
[340170626,1728749440509,-3140.688368,0.00041332,120]
[340170627,1728749440519,-3140.688368,0.00041332,120]
[340170628,1728749440530,-3140.688368,0.00041332,120]
[340170629,1728749440542,-3140.688368,0.00041332,120]
[340170630,1728749440554,-151.0,0.00041332,120]
[340170631,1728749440563,-151.0,0.00041332,120]
[340170632,1728749440573,-644.783026,0.00041332,120]
[340170633,1728749440582,-644.783026,0.00041332,120]
[340170634,1728749440591,-644.783026,0.00041332,120]
[340170635,1728749440601,-644.783026,0.00041332,120]
[340170636,1728749440613,-6334.48182735,0.00041332,26]
[340170637,1728749440624,-4122.97279095,0.00041332,61]
[340170638,1728749440635,-1685.0,0.00041332,10]
[340170639,1728749440645,-2366.76549573,0.00041332,20]
[340170640,1728749440691,-92996.49895299,0.00041332,20]
[340170641,1728749440702,-286802.21711004,0.00041332,20]
[340170670,1728749444002,169.909089,0.00034916,2]
[340170676,1728749459504,800.0,0.00037329,120]
[340170679,1728749510117,156.0,0.0003443,2]
[340170687,1728750351176,-217.48447443,0.00032877,2]
[340170688,1728750351203,-1111.0,0.00034849,120]
[340170689,1728750351225,-160.0,0.00035,2]
[340170690,1728750351249,-161.80071594,0.00036822,2]
[340170691,1728750351272,-512.32490603,0.00036975,2]
[340170693,1728750427106,-257.8320624,0.00036,3]
[340170694,1728750427127,-453.59290944,0.0003679,4]
[340170695,1728750427260,-968.08361627,0.00036975,2]
[340170696,1728750427282,-453.59290944,0.00037158,4]
[340170697,1728750427303,-453.59290944,0.00037526,4]
[340170698,1728750427324,-258.287745,0.00037562,2]
[340170699,1728750427345,-453.59290944,0.00037894,4]
[340170700,1728750427367,-258.287745,0.00038247,2]
[340170701,1728750427387,-453.59290944,0.00038262,4]
[340170702,1728750427407,-400.0,0.00038628,30]
[340170703,1728750427429,-400.0,0.00038629,5]
[340170704,1728750427450,-604.79054591,0.0003863,6]
[340170705,1728750427472,-168.21319466,0.00038795,7]
[340170706,1728750427492,-500.0,0.00038932,30]
[340170707,1728750427513,-258.287745,0.00038932,2]
[340170708,1728750427533,-173.0,0.00038964,2]
[340170709,1728750427554,-500.0,0.00038964,30]
[340170710,1728750427575,-500.0,0.00038964,30]
[340170711,1728750427595,-500.0,0.00038964,7]
[340170712,1728750427616,-153.04661989,0.00038998,6]
[340170713,1728750446086,-451.74392602,0.00038998,6]
[340170714,1728750446108,-302.39527298,0.00039365,6]
[340170715,1728750446131,-718.97378034,0.000399,2]
[340170716,1728750447144,-568.45743712,0.000399,2]
[340170717,1728750447165,-312.438291,0.0004,2]
[340170718,1728750447186,-156.0,0.0004017,2]
[340170719,1728750447209,-165.369,0.0004017,57]
[340170720,1728750447233,-255.4640463,0.00040566,2]
[340170721,1728750447264,-171.34737354,0.00040767,21]
[340170722,1728750447288,-376.17892938,0.00041,5]
[340170723,1728750448141,-84.88294752,0.00041,5]
[340170724,1728750448163,-88.41777641,0.00041232,2]
[340170727,1728750499920,7364.49445983,0.000125,2]
[340170728,1728750505027,174.44129806,0.000212,2]
[340170729,1728750509362,1060.8959528,0.000176,2]
[340170730,1728750511287,1405.79180791,0.000134,2]
[340170731,1728750517158,1903.98252932,0.00015,7]
[340170734,1728750556099,-1158.63961514,0.0002799,7]
[340170735,1728750556119,-360.522,0.00028575,7]
[340170736,1728750556143,-1015.2380666,0.0003,7]
[340170737,1728750556165,-2196.74550031,0.00033,2]
[340170738,1728750556191,-400.0,0.00035999,2]
[340170739,1728750556215,-400.0,0.00035999,2]
[340170740,1728750556236,-25109.76356988,0.00036,30]
[340170741,1728750556256,-649.13077539,0.00038,14]
[340170742,1728750556277,-560.0,0.00038559,5]
[340170744,1728750587373,156.0,0.0003443,2]
[340170774,1728750633157,-296.816376,0.0004,2]
[340170775,1728750633168,-156.0,0.0004089,2]
[340170776,1728750633178,-454.71627081,0.00041231,5]
[340170835,1728750639062,-95.28372919,0.00041231,5]
[340170836,1728750639071,-77.95759205,0.00041232,2]
[340170837,1728750639080,-67.04868947,0.00041232,28]
[340170838,1728750639099,-399.82719863,0.00041232,28]
[340170839,1728750639110,-3555.74905429,0.00041232,28]
[340170840,1728750639120,-500.0,0.00041237,10]
[340170841,1728750639129,-150.0,0.000413,2]
[340170842,1728750639138,-200.0,0.000413,44]
[340170843,1728750639147,-1066.29,0.00041322,30]
[340170844,1728750639157,-6514.8,0.00041322,10]
[340170845,1728750639166,-888.57,0.00041322,30]
[340170846,1728750639175,-5429.0,0.00041322,10]
[340170847,1728750639184,-740.48,0.00041322,30]
[340170848,1728750639193,-4524.17,0.00041322,10]
[340170849,1728750639202,-617.06,0.00041322,30]
[340170850,1728750639211,-3770.14,0.00041322,10]
[340170851,1728750639221,-1000.0,0.00041329,120]
[340170852,1728750639229,-259.41273325,0.00041331,31]
[340170853,1728750639239,-190.00711981,0.00041331,31]
[340170854,1728750639248,-303.2806361,0.00041331,31]
[340170855,1728750639257,-500.0,0.00041331,31]
[340170856,1728750639266,-500.0,0.00041331,31]
[340170857,1728750639275,-500.0,0.00041331,31]
[340170858,1728750639284,-500.0,0.00041331,31]
[340170859,1728750639293,-500.0,0.00041331,31]
[340170860,1728750639302,-500.0,0.00041331,31]
[340170861,1728750639311,-500.0,0.00041331,31]
[340170862,1728750639320,-500.0,0.00041331,31]
[340170863,1728750639329,-500.0,0.00041331,31]
[340170864,1728750639338,-500.0,0.00041331,31]
[340170865,1728750639348,-500.0,0.00041331,31]
[340170866,1728750639362,-500.0,0.00041331,31]
[340170867,1728750639371,-500.0,0.00041331,31]
[340170868,1728750639380,-500.0,0.00041331,31]
[340170869,1728750639390,-500.0,0.00041331,31]
[340170870,1728750639400,-500.0,0.00041331,31]
[340170871,1728750639410,-500.0,0.00041331,31]
[340170872,1728750639419,-500.0,0.00041331,31]
[340170873,1728750639428,-500.0,0.00041331,31]
[340170874,1728750639440,-500.0,0.00041331,31]
[340170875,1728750639450,-500.0,0.00041331,31]
[340170876,1728750639459,-500.0,0.00041331,31]
[340170877,1728750639468,-500.0,0.00041331,31]
[340170878,1728750639477,-234.70000051,0.00041331,31]
[340170879,1728750639487,-500.0,0.00041331,31]
[340170880,1728750639496,-500.0,0.00041331,31]
[340170881,1728750639505,-500.0,0.00041331,31]
[340170882,1728750639513,-503.65815441,0.00041331,31]
[340170883,1728750639523,-500.0,0.00041331,31]
[340170884,1728750639532,-222.11758284,0.00041332,30]
[340170885,1728750639540,-1080.98982905,0.00041332,20]
[340170886,1728750639552,-2057.955742,0.00041332,20]
[340170887,1728750639563,-1295.88272428,0.00041332,20]
[340170901,1728750643640,-514.22,0.00041322,30]
[340170902,1728750643649,-112371.21962734,0.00041332,20]
[340170903,1728750643659,-1685.08867887,0.00041332,10]
[340170904,1728750643669,-1001.7272058,0.00041332,2]
[340170905,1728750643677,-1051.1820951,0.00041332,2]
[340170906,1728750643687,-342.24917294,0.00041332,2]
[340170907,1728750643696,-1216.51804919,0.00041332,2]
[340170908,1728750643705,-168620.0122808,0.00041332,20]
[340170910,1728750643869,-88.42676016,0.00041332,20]
[340170912,1728750646677,-19.25563599,0.00041332,20]
[340170913,1728750676078,233.08767313,0.00032877,2]
[340170914,1728750676588,1111.0,0.00034849,120]
[340170915,1728750676893,171.13845462,0.00036822,2]
[340170916,1728750677300,194.77791438,0.00038795,7]
[340170924,1728751643131,-177.02707244,0.00032877,2]
[340170925,1728751643156,-824.08375184,0.00033,2]
[340170926,1728751643182,-547.0941087,0.00034849,120]
[340170927,1728751643208,-169.909089,0.00036631,2]
[340170928,1728751643232,-162.3432936,0.00036976,2]
[340170929,1728751643255,-1736.37036835,0.0004,30]
[340170931,1728751651170,-262.32963065,0.0004,30]
[340170932,1728751651193,-297.433635,0.0004,2]
[340170933,1728751651215,-550.0,0.00041123,5]
[340170934,1728751651238,-756.06363032,0.00041125,8]
[340170935,1728751651260,-3519.7968246,0.00041231,28]
[340170936,1728751651283,-160.49217476,0.000413,3]
[340170937,1728751651304,-200.0,0.000413,44]
[340170938,1728751651338,-150.0,0.000413,2]
[340170939,1728751651361,-807.53,0.00041322,30]
[340170940,1728751651384,-917.66,0.00041322,30]
[340170941,1728751651409,-764.72,0.00041322,30]
[340170942,1728751651432,-629.56779904,0.00041322,30]
[340170945,1728751747133,-156.0,0.0003443,2]
[340171015,1728751838192,-1110.82579414,0.0003999,10]
[340171016,1728751838206,-4845.75420586,0.0003999,10]
[340171017,1728751838217,-4963.82,0.0003999,10]
[340171018,1728751838233,-500.0,0.00039999,31]
[340171019,1728751838247,-500.0,0.00039999,31]
[340171020,1728751838259,-500.0,0.00039999,31]
[340171021,1728751838269,-500.0,0.00039999,31]
[340171022,1728751838282,-234.70000051,0.00039999,31]
[340171023,1728751838293,-500.0,0.00039999,31]
[340171024,1728751838305,-500.0,0.00039999,31]
[340171025,1728751838318,-500.0,0.00039999,31]
[340171026,1728751838330,-500.0,0.00039999,31]
[340171027,1728751838340,-500.0,0.00039999,31]
[340171028,1728751838352,-500.0,0.00039999,31]
[340171029,1728751838364,-500.0,0.00039999,31]
[340171030,1728751838375,-500.0,0.00039999,31]
[340171031,1728751838385,-500.0,0.00039999,31]
[340171032,1728751838396,-500.0,0.00039999,31]
[340171033,1728751838408,-500.0,0.00039999,31]
[340171034,1728751838420,-500.0,0.00039999,31]
[340171035,1728751838432,-500.0,0.00039999,31]
[340171036,1728751838442,-500.0,0.00039999,31]
[340171037,1728751838452,-500.0,0.00039999,31]
[340171038,1728751838463,-500.0,0.00039999,31]
[340171039,1728751838475,-500.0,0.00039999,31]
[340171040,1728751838487,-154.76066485,0.00039999,31]
[340171041,1728751838498,-500.0,0.00039999,31]
[340171042,1728751838509,-500.0,0.00039999,31]
[340171043,1728751838519,-500.0,0.00039999,31]
[340171044,1728751838528,-500.0,0.00039999,31]
[340171045,1728751838538,-500.0,0.00039999,31]
[340171046,1728751838550,-500.0,0.00039999,31]
[340171047,1728751838560,-150.0,0.0004,120]
[340171048,1728751838570,-17845.64118475,0.0004,120]
[340171061,1728751839899,-102754.35881525,0.0004,120]
[340171062,1728751839909,-335.15224072,0.0004,30]
[340171063,1728751839923,-3079.82222156,0.00041231,28]
[340171064,1728751839933,-200.0,0.000413,44]
[340171065,1728751839942,-190.00711981,0.00041321,31]
[340171066,1728751839952,-259.41273325,0.00041321,31]
[340171067,1728751839961,-303.2806361,0.00041321,31]
[340171068,1728751839971,-550.0,0.00041321,5]
[340171069,1728751839980,-532.34,0.00041322,30]
[340171070,1728751839989,-443.61,0.00041322,30]
[340171071,1728751839998,-369.68,0.00041322,30]
[340171072,1728751840008,-308.06,0.00041322,30]
[340171073,1728751840018,-256.72,0.00041322,30]
[340171074,1728751840027,-213.93,0.00041322,30]
[340171075,1728751840037,-178.28,0.00041322,30]
[340171076,1728751840046,-891.42,0.00041322,30]
[340171077,1728751840057,-5229.22,0.00041322,10]
[340171078,1728751840069,-165.369,0.00041331,60]
[340171079,1728751840079,-1000.0,0.00041331,120]
[340171080,1728751840091,-284.27551734,0.00041331,2]
[340171081,1728751840101,-120441.28792882,0.00041332,20]
[340171082,1728751840110,-294.30033699,0.00041332,3]
[340171083,1728751840121,-558.92035194,0.00041332,2]
[340171084,1728751840130,-15000.0,0.00041332,7]
[340171085,1728751840139,-1000.0,0.00041357,30]
[340171086,1728751840148,-500.0,0.00041373,10]
[340171087,1728751840157,-500.0,0.00041373,10]
[340171088,1728751840166,-500.0,0.00041373,10]
[340171089,1728751840178,-500.0,0.00041373,2]
[340171090,1728751840187,-500.0,0.0004138,5]
[340171091,1728751840197,-1000.0,0.00041605,120]
[340171092,1728751840207,-493.90131768,0.000418,10]
[340171093,1728751840219,-500.0,0.000418,10]
[340171094,1728751840229,-156.0,0.0004181,2]
[340171095,1728751840244,-1000.0,0.00041879,120]
[340171096,1728751840255,-500.0,0.00042,10]
[340171097,1728751840266,-500.0,0.00042,10]
[340171098,1728751840276,-500.0,0.00042,10]
[340171099,1728751840290,-500.0,0.00042,10]
[340171100,1728751840300,-500.0,0.00042,10]
[340171101,1728751840312,-500.0,0.00042,10]
[340171102,1728751840322,-500.0,0.00042,10]
[340171103,1728751840334,-500.0,0.00042,10]
[340171104,1728751840345,-500.0,0.00042,10]
[340171105,1728751840354,-500.0,0.00042,10]
[340171106,1728751840364,-500.0,0.00042,10]
[340171107,1728751840376,-500.0,0.00042,10]
[340171108,1728751840385,-500.0,0.00042,10]
[340171109,1728751840396,-500.0,0.00042,10]
[340171110,1728751840409,-500.0,0.00042,10]
[340171111,1728751840419,-500.0,0.00042,10]
[340171112,1728751840429,-500.0,0.00042,10]
[340171113,1728751840439,-500.0,0.00042,10]
[340171114,1728751840448,-500.0,0.00042,10]
[340171115,1728751840458,-500.0,0.00042,10]
[340171116,1728751840467,-500.0,0.00042,10]
[340171117,1728751840477,-500.0,0.00042,10]
[340171118,1728751840486,-500.0,0.00042,10]
[340171119,1728751840496,-500.0,0.00042,10]
[340171120,1728751840506,-500.0,0.00042073,10]
[340171121,1728751840515,-1000.0,0.00042153,120]
[340171122,1728751840525,-150.0,0.000423,2]
[340171123,1728751840534,-3663.12870404,0.00042357,14]
[340171124,1728751840544,-1000.0,0.00042427,120]
[340171125,1728751840554,-1000.0,0.00042701,120]
[340171126,1728751840565,-1000.0,0.00042742,10]
[340171127,1728751840576,-500.0,0.00042742,10]
[340171128,1728751840586,-1000.0,0.00042742,10]
[340171129,1728751840597,-1000.0,0.00042975,120]
[340171130,1728751840609,-302.0843413,0.00043,120]
[340171131,1728751840620,-310.182522,0.0004317,10]
[340171132,1728751840630,-1000.0,0.00043249,120]
[340171133,1728751840639,-150.0,0.000433,2]
[340171134,1728751840648,-1000.0,0.00043443,10]
[340171135,1728751840658,-223.25332324,0.00043523,120]
[340171157,1728752839169,-156.0,0.0003443,2]
[340171158,1728752839192,-297.247128,0.0004,2]
[340171159,1728752839216,-550.0,0.0004082,5]
[340171160,1728752839238,-170.0609444,0.00041557,2]
[340171161,1728752839258,-322.0,0.0004205,46]
[340171162,1728752839280,-3663.12870404,0.00042357,14]
[340171163,1728752839302,-165.369,0.00042357,64]